Workbook

Sheet Dashboard
N1: ="INTERAKTIVES BUDGET VON "&Budgetbezeichnung -> INTERAKTIVES BUDGET VON FAMILIE NIELSEN 2012
A3: =Diagrammdaten!C38 -> 4,222 €
D5: Einkünfte
A7: =Diagrammdaten!C39 -> 7,936 €
D9: Ausgaben
A11: =Diagrammdaten!D40&Diagrammdaten!C40&" €" -> -3714 €
D13: Cashflow

Sheet Budget
C1: Jan | D1: Feb | E1: Mär | F1: Apr | G1: Mai | H1: Jun | I1: Jul | J1: Aug | K1: Sep | L1: Okt | M1: Nov | N1: Dez | O1: Jahr | P1: Durchschn.
B5: Anfangssaldo | C5: 1,000
B6: Summe Einkünfte | C6: =SUM(tblEinkünfte[jan]) -> 4,222 | D6: =SUM(tblEinkünfte[feb]) -> 9,033 | E6: =SUM(tblEinkünfte[mar]) -> 4,000 | F6: =SUM(tblEinkünfte[apr]) -> 4,045 | G6: =SUM(tblEinkünfte[may]) -> 9,000 | H6: =SUM(tblEinkünfte[jun]) -> 1,525 | I6: =SUM(tblEinkünfte[jul]) -> 1,500 | J6: =SUM(tblEinkünfte[aug]) -> 6,500 | K6: =SUM(tblEinkünfte[sep]) -> 4,000 | L6: =SUM(tblEinkünfte[oct]) -> 4,000 | M6: =SUM(tblEinkünfte[nov]) -> 9,000 | N6: =SUM(tblEinkünfte[dec]) -> 4,000 | O6: =SUM(tblEinkünfte[year]) -> 60,825 | P6: =O6/12 -> 5,069
B7: Summe Ausgaben | C7: =SUM(tblKostenkategorie_01[jan],tblKostenkategorie_02[jan],tblKostenkategorie_03[jan],tblKostenkategorie_04[jan],tblKostenkategorie_05[jan],tblKostenkategorie_06[jan],tblKostenkategorie_07[jan],tblKostenkategorie_08[jan],tblKostenkategorie_09[jan],tblKostenkategorie_10[jan],tblKostenkategorie_11[jan],tblKostenkategorie_12[jan],tblKostenkategorie_13[jan],tblKostenkategorie_14[jan],tblKostenkategorie_15[jan]) -> 7,936 | D7: =SUM(tblKostenkategorie_01[feb],tblKostenkategorie_02[feb],tblKostenkategorie_03[feb],tblKostenkategorie_04[feb],tblKostenkategorie_05[feb],tblKostenkategorie_06[feb],tblKostenkategorie_07[feb],tblKostenkategorie_08[feb],tblKostenkategorie_09[feb],tblKostenkategorie_10[feb],tblKostenkategorie_11[feb],tblKostenkategorie_12[feb],tblKostenkategorie_13[feb],tblKostenkategorie_14[feb],tblKostenkategorie_15[feb]) -> 5,243 | E7: =SUM(tblKostenkategorie_01[mar],tblKostenkategorie_02[mar],tblKostenkategorie_03[mar],tblKostenkategorie_04[mar],tblKostenkategorie_05[mar],tblKostenkategorie_06[mar],tblKostenkategorie_07[mar],tblKostenkategorie_08[mar],tblKostenkategorie_09[mar],tblKostenkategorie_10[mar],tblKostenkategorie_11[mar],tblKostenkategorie_12[mar],tblKostenkategorie_13[mar],tblKostenkategorie_14[mar],tblKostenkategorie_15[mar]) -> 5,933 | F7: =SUM(tblKostenkategorie_01[apr],tblKostenkategorie_02[apr],tblKostenkategorie_03[apr],tblKostenkategorie_04[apr],tblKostenkategorie_05[apr],tblKostenkategorie_06[apr],tblKostenkategorie_07[apr],tblKostenkategorie_08[apr],tblKostenkategorie_09[apr],tblKostenkategorie_10[apr],tblKostenkategorie_11[apr],tblKostenkategorie_12[apr],tblKostenkategorie_13[apr],tblKostenkategorie_14[apr],tblKostenkategorie_15[apr]) -> 5,858 | G7: =SUM(tblKostenkategorie_01[may],tblKostenkategorie_02[may],tblKostenkategorie_03[may],tblKostenkategorie_04[may],tblKostenkategorie_05[may],tblKostenkategorie_06[may],tblKostenkategorie_07[may],tblKostenkategorie_08[may],tblKostenkategorie_09[may],tblKostenkategorie_10[may],tblKostenkategorie_11[may],tblKostenkategorie_12[may],tblKostenkategorie_13[may],tblKostenkategorie_14[may],tblKostenkategorie_15[may]) -> 5,468 | H7: =SUM(tblKostenkategorie_01[jun],tblKostenkategorie_02[jun],tblKostenkategorie_03[jun],tblKostenkategorie_04[jun],tblKostenkategorie_05[jun],tblKostenkategorie_06[jun],tblKostenkategorie_07[jun],tblKostenkategorie_08[jun],tblKostenkategorie_09[jun],tblKostenkategorie_10[jun],tblKostenkategorie_11[jun],tblKostenkategorie_12[jun],tblKostenkategorie_13[jun],tblKostenkategorie_14[jun],tblKostenkategorie_15[jun]) -> 5,118 | I7: =SUM(tblKostenkategorie_01[jul],tblKostenkategorie_02[jul],tblKostenkategorie_03[jul],tblKostenkategorie_04[jul],tblKostenkategorie_05[jul],tblKostenkategorie_06[jul],tblKostenkategorie_07[jul],tblKostenkategorie_08[jul],tblKostenkategorie_09[jul],tblKostenkategorie_10[jul],tblKostenkategorie_11[jul],tblKostenkategorie_12[jul],tblKostenkategorie_13[jul],tblKostenkategorie_14[jul],tblKostenkategorie_15[jul]) -> 5,743 | J7: =SUM(tblKostenkategorie_01[aug],tblKostenkategorie_02[aug],tblKostenkategorie_03[aug],tblKostenkategorie_04[aug],tblKostenkategorie_05[aug],tblKostenkategorie_06[aug],tblKostenkategorie_07[aug],tblKostenkategorie_08[aug],tblKostenkategorie_09[aug],tblKostenkategorie_10[aug],tblKostenkategorie_11[aug],tblKostenkategorie_12[aug],tblKostenkategorie_13[aug],tblKostenkategorie_14[aug],tblKostenkategorie_15[aug]) -> 5,353 | K7: =SUM(tblKostenkategorie_01[sep],tblKostenkategorie_02[sep],tblKostenkategorie_03[sep],tblKostenkategorie_04[sep],tblKostenkategorie_05[sep],tblKostenkategorie_06[sep],tblKostenkategorie_07[sep],tblKostenkategorie_08[sep],tblKostenkategorie_09[sep],tblKostenkategorie_10[sep],tblKostenkategorie_11[sep],tblKostenkategorie_12[sep],tblKostenkategorie_13[sep],tblKostenkategorie_14[sep],tblKostenkategorie_15[sep]) -> 5,983 | L7: =SUM(tblKostenkategorie_01[oct],tblKostenkategorie_02[oct],tblKostenkategorie_03[oct],tblKostenkategorie_04[oct],tblKostenkategorie_05[oct],tblKostenkategorie_06[oct],tblKostenkategorie_07[oct],tblKostenkategorie_08[oct],tblKostenkategorie_09[oct],tblKostenkategorie_10[oct],tblKostenkategorie_11[oct],tblKostenkategorie_12[oct],tblKostenkategorie_13[oct],tblKostenkategorie_14[oct],tblKostenkategorie_15[oct]) -> 5,943 | M7: =SUM(tblKostenkategorie_01[nov],tblKostenkategorie_02[nov],tblKostenkategorie_03[nov],tblKostenkategorie_04[nov],tblKostenkategorie_05[nov],tblKostenkategorie_06[nov],tblKostenkategorie_07[nov],tblKostenkategorie_08[nov],tblKostenkategorie_09[nov],tblKostenkategorie_10[nov],tblKostenkategorie_11[nov],tblKostenkategorie_12[nov],tblKostenkategorie_13[nov],tblKostenkategorie_14[nov],tblKostenkategorie_15[nov]) -> 5,058 | N7: =SUM(tblKostenkategorie_01[dec],tblKostenkategorie_02[dec],tblKostenkategorie_03[dec],tblKostenkategorie_04[dec],tblKostenkategorie_05[dec],tblKostenkategorie_06[dec],tblKostenkategorie_07[dec],tblKostenkategorie_08[dec],tblKostenkategorie_09[dec],tblKostenkategorie_10[dec],tblKostenkategorie_11[dec],tblKostenkategorie_12[dec],tblKostenkategorie_13[dec],tblKostenkategorie_14[dec],tblKostenkategorie_15[dec]) -> 4,958 | O7: =SUM(tblKostenkategorie_01[year],tblKostenkategorie_02[year],tblKostenkategorie_03[year],tblKostenkategorie_04[year],tblKostenkategorie_05[year],tblKostenkategorie_06[year],tblKostenkategorie_07[year],tblKostenkategorie_08[year],tblKostenkategorie_09[year],tblKostenkategorie_10[year],tblKostenkategorie_11[year],tblKostenkategorie_12[year],tblKostenkategorie_13[year],tblKostenkategorie_14[year],tblKostenkategorie_15[year]) -> 68,594 | P7: =O7/12 -> 5,716
B8: Nettoeinkommen | C8: =C6-C7 -> -3,714 | D8: =D6-D7 -> 3,790 | E8: -1,933 | F8: -1,813 | G8: 3,532 | H8: -3,593 | I8: -4,243 | J8: 1,147 | K8: -1,983 | L8: -1,943 | M8: 3,942 | N8: -958 | O8: -7,769 | P8: =O8/12 -> -647
B9: SUMME CASHFLOW | C9: =C5+C6-C7 -> -2,714 | D9: =C9+D6-D7 -> 1,076 | E9: =D9+E6-E7 -> -857 | F9: -2,670 | G9: 862 | H9: -2,731 | I9: -6,974 | J9: -5,827 | K9: -7,810 | L9: -9,753 | M9: -5,811 | N9: -6,769
B12: Einkünfte
B13: Gehälter und Trinkgelder | C13: 4,000 | D13: 4,000 | E13: 4,000 | F13: 4,000 | G13: 4,000 | H13: 1,000 | I13: 1,000 | J13: 1,000 | K13: 4,000 | L13: 4,000 | M13: 4,000 | N13: 4,000 | O13: =SUM(tblEinkünfte[[#This Row],[jan]:[dec]]) -> 39,000 | P13: =tblEinkünfte[[#This Row],[year]]/12 -> 3,250
B14: Zinsertrag | C14: 222 | D14: 33 | F14: 45 | H14: 25 | O14: =SUM(tblEinkünfte[[#This Row],[jan]:[dec]]) -> 325 | P14: =tblEinkünfte[[#This Row],[year]]/12 -> 27
B15: Dividenden | D15: 5,000 | G15: 5,000 | J15: 5,000 | M15: 5,000 | O15: =SUM(tblEinkünfte[[#This Row],[jan]:[dec]]) -> 20,000 | P15: =tblEinkünfte[[#This Row],[year]]/12 -> 1,667
B16: Rückerstattungen/Rückzahlungen | H16: 500 | I16: 500 | J16: 500 | O16: =SUM(tblEinkünfte[[#This Row],[jan]:[dec]]) -> 1,500 | P16: =tblEinkünfte[[#This Row],[year]]/12 -> 125
B17: Sonstiges | O17: =SUM(tblEinkünfte[[#This Row],[jan]:[dec]]) -> 0 | P17: =tblEinkünfte[[#This Row],[year]]/12 -> 0
B18: SUMME EINKÜNFTE | C18: =SUM(tblEinkünfte[jan]) -> 4,222 | D18: =SUM(tblEinkünfte[feb]) -> 9,033 | E18: =SUM(tblEinkünfte[mar]) -> 4,000 | F18: =SUM(tblEinkünfte[apr]) -> 4,045 | G18: =SUM(tblEinkünfte[may]) -> 9,000 | H18: =SUM(tblEinkünfte[jun]) -> 1,525 | I18: =SUM(tblEinkünfte[jul]) -> 1,500 | J18: =SUM(tblEinkünfte[aug]) -> 6,500 | K18: =SUM(tblEinkünfte[sep]) -> 4,000 | L18: =SUM(tblEinkünfte[oct]) -> 4,000 | M18: =SUM(tblEinkünfte[nov]) -> 9,000 | N18: =SUM(tblEinkünfte[dec]) -> 4,000 | O18: =SUM(tblEinkünfte[year]) -> 60,825 | P18: =tblEinkünfte[[#Totals],[year]]/12 -> 5,069
B21: Haushalt
B22: Hypothek/Miete | C22: 850 | D22: 850 | E22: 850 | F22: 850 | G22: 850 | H22: 850 | I22: 850 | J22: 850 | K22: 850 | L22: 850 | M22: 900 | N22: 900 | O22: =SUM(tblKostenkategorie_01[[#This Row],[jan]:[dec]]) -> 10,300 | P22: =tblKostenkategorie_01[[#This Row],[year]]/12 -> 858
B23: Strom | C23: 200 | D23: 200 | E23: 175 | F23: 150 | G23: 150 | H23: 175 | I23: 225 | J23: 275 | K23: 200 | L23: 150 | M23: 150 | N23: 150 | O23: =SUM(tblKostenkategorie_01[[#This Row],[jan]:[dec]]) -> 2,200 | P23: =tblKostenkategorie_01[[#This Row],[year]]/12 -> 183
B24: Telefon | C24: 50 | D24: 50 | E24: 100 | F24: 100 | G24: 50 | H24: 50 | I24: 100 | J24: 100 | K24: 50 | L24: 50 | M24: 50 | N24: 50 | O24: =SUM(tblKostenkategorie_01[[#This Row],[jan]:[dec]]) -> 800 | P24: =tblKostenkategorie_01[[#This Row],[year]]/12 -> 67
B25: Kabel-/Satellitenfernsehen | C25: 69 | D25: 69 | E25: 69 | F25: 69 | G25: 69 | H25: 69 | I25: 69 | J25: 69 | K25: 69 | L25: 69 | M25: 69 | N25: 69 | O25: =SUM(tblKostenkategorie_01[[#This Row],[jan]:[dec]]) -> 828 | P25: =tblKostenkategorie_01[[#This Row],[year]]/12 -> 69
B26: Internet | C26: 39 | D26: 39 | E26: 39 | F26: 39 | G26: 39 | H26: 39 | I26: 39 | J26: 39 | K26: 39 | L26: 39 | M26: 39 | N26: 39 | O26: =SUM(tblKostenkategorie_01[[#This Row],[jan]:[dec]]) -> 468 | P26: =tblKostenkategorie_01[[#This Row],[year]]/12 -> 39
B27: =UPPER("SUMME " & B21) -> SUMME HAUSHALT | C27: =SUM(tblKostenkategorie_01[jan]) -> 1,208 | D27: =SUM(tblKostenkategorie_01[feb]) -> 1,208 | E27: =SUM(tblKostenkategorie_01[mar]) -> 1,233 | F27: =SUM(tblKostenkategorie_01[apr]) -> 1,208 | G27: =SUM(tblKostenkategorie_01[may]) -> 1,158 | H27: =SUM(tblKostenkategorie_01[jun]) -> 1,183 | I27: =SUM(tblKostenkategorie_01[jul]) -> 1,283 | J27: =SUM(tblKostenkategorie_01[aug]) -> 1,333 | K27: =SUM(tblKostenkategorie_01[sep]) -> 1,208 | L27: =SUM(tblKostenkategorie_01[oct]) -> 1,158 | M27: =SUM(tblKostenkategorie_01[nov]) -> 1,208 | N27: =SUM(tblKostenkategorie_01[dec]) -> 1,208 | O27: =SUM(tblKostenkategorie_01[year]) -> 14,596 | P27: =tblKostenkategorie_01[[#Totals],[year]]/12 -> 1,216
B30: Tägliches Leben
B31: Lebensmittel | C31: 345 | D31: 250 | E31: 200 | F31: 400 | G31: 350 | H31: 250 | I31: 400 | J31: 350 | K31: 250 | L31: 400 | M31: 350 | N31: 250 | O31: =SUM(tblKostenkategorie_02[[#This Row],[jan]:[dec]]) -> 3,795 | P31: =tblKostenkategorie_02[[#This Row],[year]]/12 -> 316
B32: Kleidung | C32: 300 | F32: 300 | I32: 300 | L32: 300 | O32: =SUM(tblKostenkategorie_02[[#This Row],[jan]:[dec]]) -> 1,200 | P32: =tblKostenkategorie_02[[#This Row],[year]]/12 -> 100
B33: Restaurantbesuche | C33: 125 | D33: 125 | E33: 300 | F33: 125 | G33: 125 | H33: 200 | I33: 125 | J33: 125 | K33: 125 | L33: 125 | M33: 125 | N33: 125 | O33: =SUM(tblKostenkategorie_02[[#This Row],[jan]:[dec]]) -> 1,750 | P33: =tblKostenkategorie_02[[#This Row],[year]]/12 -> 146
B34: Friseur | C34: 25 | E34: 50 | G34: 25 | I34: 50 | K34: 25 | M34: 100 | O34: =SUM(tblKostenkategorie_02[[#This Row],[jan]:[dec]]) -> 275 | P34: =tblKostenkategorie_02[[#This Row],[year]]/12 -> 23
B35: Sonstiges | O35: =SUM(tblKostenkategorie_02[[#This Row],[jan]:[dec]]) -> 0 | P35: =tblKostenkategorie_02[[#This Row],[year]]/12 -> 0
B36: =UPPER("SUMME " & B30) -> SUMME TÄGLICHES LEBEN | C36: =SUM(tblKostenkategorie_02[jan]) -> 795 | D36: =SUM(tblKostenkategorie_02[feb]) -> 375 | E36: =SUM(tblKostenkategorie_02[mar]) -> 550 | F36: =SUM(tblKostenkategorie_02[apr]) -> 825 | G36: =SUM(tblKostenkategorie_02[may]) -> 500 | H36: =SUM(tblKostenkategorie_02[jun]) -> 450 | I36: =SUM(tblKostenkategorie_02[jul]) -> 875 | J36: =SUM(tblKostenkategorie_02[aug]) -> 475 | K36: =SUM(tblKostenkategorie_02[sep]) -> 400 | L36: =SUM(tblKostenkategorie_02[oct]) -> 825 | M36: =SUM(tblKostenkategorie_02[nov]) -> 575 | N36: =SUM(tblKostenkategorie_02[dec]) -> 375 | O36: =SUM(tblKostenkategorie_02[year]) -> 7,020 | P36: =tblKostenkategorie_02[[#Totals],[year]]/12 -> 585
B39: Kinder
B40: Unterrichtsmaterialien | C40: 123 | E40: 100 | J40: 345 | O40: =SUM(tblKostenkategorie_03[[#This Row],[jan]:[dec]]) -> 568 | P40: =tblKostenkategorie_03[[#This Row],[year]]/12 -> 47
B41: Kleidung | D41: 100 | G41: 100 | K41: 100 | N41: 100 | O41: =SUM(tblKostenkategorie_03[[#This Row],[jan]:[dec]]) -> 400 | P41: =tblKostenkategorie_03[[#This Row],[year]]/12 -> 33
B42: Mittagessen in der Schule | C42: 50 | D42: 50 | E42: 50 | F42: 50 | G42: 50 | H42: 50 | K42: 50 | L42: 50 | M42: 50 | N42: 50 | O42: =SUM(tblKostenkategorie_03[[#This Row],[jan]:[dec]]) -> 500 | P42: =tblKostenkategorie_03[[#This Row],[year]]/12 -> 42
B43: Medizin | C43: 200 | D43: 200 | E43: 200 | F43: 200 | G43: 200 | H43: 200 | I43: 200 | J43: 200 | K43: 200 | L43: 200 | M43: 200 | N43: 200 | O43: =SUM(tblKostenkategorie_03[[#This Row],[jan]:[dec]]) -> 2,400 | P43: =tblKostenkategorie_03[[#This Row],[year]]/12 -> 200
B44: Sonstiges | C44: 2,000 | D44: 150 | H44: 200 | L44: 100 | O44: =SUM(tblKostenkategorie_03[[#This Row],[jan]:[dec]]) -> 2,450 | P44: =tblKostenkategorie_03[[#This Row],[year]]/12 -> 204
B45: =UPPER("SUMME " & B39) -> SUMME KINDER | C45: =SUM(tblKostenkategorie_03[jan]) -> 2,373 | D45: =SUM(tblKostenkategorie_03[feb]) -> 500 | E45: =SUM(tblKostenkategorie_03[mar]) -> 350 | F45: =SUM(tblKostenkategorie_03[apr]) -> 250 | G45: =SUM(tblKostenkategorie_03[may]) -> 350 | H45: =SUM(tblKostenkategorie_03[jun]) -> 450 | I45: =SUM(tblKostenkategorie_03[jul]) -> 200 | J45: =SUM(tblKostenkategorie_03[aug]) -> 545 | K45: =SUM(tblKostenkategorie_03[sep]) -> 350 | L45: =SUM(tblKostenkategorie_03[oct]) -> 350 | M45: =SUM(tblKostenkategorie_03[nov]) -> 250 | N45: =SUM(tblKostenkategorie_03[dec]) -> 350 | O45: =SUM(tblKostenkategorie_03[year]) -> 6,318 | P45: =tblKostenkategorie_03[[#Totals],[year]]/12 -> 527
B48: Transport
B49: Kfz-Kosten | C49: 600 | D49: 600 | E49: 600 | F49: 600 | G49: 600 | H49: 600 | I49: 600 | J49: 600 | K49: 600 | L49: 600 | M49: 600 | N49: 600 | O49: =SUM(tblKostenkategorie_04[[#This Row],[jan]:[dec]]) -> 7,200 | P49: =tblKostenkategorie_04[[#This Row],[year]]/12 -> 600
B50: Kraftstoff | C50: 325 | D50: 325 | E50: 325 | F50: 325 | G50: 325 | H50: 500 | I50: 500 | J50: 500 | K50: 325 | L50: 325 | M50: 325 | N50: 325 | O50: =SUM(tblKostenkategorie_04[[#This Row],[jan]:[dec]]) -> 4,425 | P50: =tblKostenkategorie_04[[#This Row],[year]]/12 -> 369
B51: Reparaturen | D51: 100 | F51: 100 | H51: 100 | J51: 100 | L51: 100 | O51: =SUM(tblKostenkategorie_04[[#This Row],[jan]:[dec]]) -> 500 | P51: =tblKostenkategorie_04[[#This Row],[year]]/12 -> 42
B52: Kfz-Anmeldung | C52: 185 | K52: 225 | O52: =SUM(tblKostenkategorie_04[[#This Row],[jan]:[dec]]) -> 410 | P52: =tblKostenkategorie_04[[#This Row],[year]]/12 -> 34
B53: Sonstiges | G53: 400 | O53: =SUM(tblKostenkategorie_04[[#This Row],[jan]:[dec]]) -> 400 | P53: =tblKostenkategorie_04[[#This Row],[year]]/12 -> 33
B54: =UPPER("SUMME " & B48) -> SUMME TRANSPORT | C54: =SUM(tblKostenkategorie_04[jan]) -> 1,110 | D54: =SUM(tblKostenkategorie_04[feb]) -> 1,025 | E54: =SUM(tblKostenkategorie_04[mar]) -> 925 | F54: =SUM(tblKostenkategorie_04[apr]) -> 1,025 | G54: =SUM(tblKostenkategorie_04[may]) -> 1,325 | H54: =SUM(tblKostenkategorie_04[jun]) -> 1,200 | I54: =SUM(tblKostenkategorie_04[jul]) -> 1,100 | J54: =SUM(tblKostenkategorie_04[aug]) -> 1,200 | K54: =SUM(tblKostenkategorie_04[sep]) -> 1,150 | L54: =SUM(tblKostenkategorie_04[oct]) -> 1,025 | M54: =SUM(tblKostenkategorie_04[nov]) -> 925 | N54: =SUM(tblKostenkategorie_04[dec]) -> 925 | O54: =SUM(tblKostenkategorie_04[year]) -> 12,935 | P54: =tblKostenkategorie_04[[#Totals],[year]]/12 -> 1,078
B57: Gesundheit
B58: Arzt/Zahnarzt | D58: 35 | G58: 35 | H58: 35 | I58: 35 | L58: 35 | O58: =SUM(tblKostenkategorie_05[[#This Row],[jan]:[dec]]) -> 175 | P58: =tblKostenkategorie_05[[#This Row],[year]]/12 -> 15
B59: Medikamente | C59: 25 | D59: 25 | E59: 25 | F59: 25 | G59: 25 | H59: 25 | I59: 25 | J59: 25 | K59: 25 | L59: 25 | M59: 25 | N59: 25 | O59: =SUM(tblKostenkategorie_05[[#This Row],[jan]:[dec]]) -> 300 | P59: =tblKostenkategorie_05[[#This Row],[year]]/12 -> 25
B60: Sonstiges | E60: 150 | K60: 150 | O60: =SUM(tblKostenkategorie_05[[#This Row],[jan]:[dec]]) -> 300 | P60: =tblKostenkategorie_05[[#This Row],[year]]/12 -> 25
B61: =UPPER("SUMME " & B57) -> SUMME GESUNDHEIT | C61: =SUM(tblKostenkategorie_05[jan]) -> 25 | D61: =SUM(tblKostenkategorie_05[feb]) -> 60 | E61: =SUM(tblKostenkategorie_05[mar]) -> 175 | F61: =SUM(tblKostenkategorie_05[apr]) -> 25 | G61: =SUM(tblKostenkategorie_05[may]) -> 60 | H61: =SUM(tblKostenkategorie_05[jun]) -> 60 | I61: =SUM(tblKostenkategorie_05[jul]) -> 60 | J61: =SUM(tblKostenkategorie_05[aug]) -> 25 | K61: =SUM(tblKostenkategorie_05[sep]) -> 175 | L61: =SUM(tblKostenkategorie_05[oct]) -> 60 | M61: =SUM(tblKostenkategorie_05[nov]) -> 25 | N61: =SUM(tblKostenkategorie_05[dec]) -> 25 | O61: =SUM(tblKostenkategorie_05[year]) -> 775 | P61: =tblKostenkategorie_05[[#Totals],[year]]/12 -> 65
B64: Versicherungen
B65: Kfz-Versicherung | C65: 150 | D65: 150 | E65: 150 | F65: 150 | G65: 150 | H65: 150 | I65: 150 | J65: 150 | K65: 150 | L65: 150 | M65: 150 | N65: 150 | O65: =SUM(tblKostenkategorie_06[[#This Row],[jan]:[dec]]) -> 1,800 | P65: =tblKostenkategorie_06[[#This Row],[year]]/12 -> 150
B66: Krankenversicherung | C66: 675 | D66: 675 | E66: 675 | F66: 675 | G66: 675 | H66: 675 | I66: 675 | J66: 675 | K66: 675 | L66: 675 | M66: 675 | N66: 675 | O66: =SUM(tblKostenkategorie_06[[#This Row],[jan]:[dec]]) -> 8,100 | P66: =tblKostenkategorie_06[[#This Row],[year]]/12 -> 675
B67: Lebensversicherung | C67: 150 | D67: 150 | E67: 150 | F67: 150 | G67: 150 | H67: 150 | I67: 150 | J67: 150 | K67: 150 | L67: 150 | M67: 150 | N67: 150 | O67: =SUM(tblKostenkategorie_06[[#This Row],[jan]:[dec]]) -> 1,800 | P67: =tblKostenkategorie_06[[#This Row],[year]]/12 -> 150
B68: =UPPER("SUMME " & B64) -> SUMME VERSICHERUNGEN | C68: =SUM(tblKostenkategorie_06[jan]) -> 975 | D68: =SUM(tblKostenkategorie_06[feb]) -> 975 | E68: =SUM(tblKostenkategorie_06[mar]) -> 975 | F68: =SUM(tblKostenkategorie_06[apr]) -> 975 | G68: =SUM(tblKostenkategorie_06[may]) -> 975 | H68: =SUM(tblKostenkategorie_06[jun]) -> 975 | I68: =SUM(tblKostenkategorie_06[jul]) -> 975 | J68: =SUM(tblKostenkategorie_06[aug]) -> 975 | K68: =SUM(tblKostenkategorie_06[sep]) -> 975 | L68: =SUM(tblKostenkategorie_06[oct]) -> 975 | M68: =SUM(tblKostenkategorie_06[nov]) -> 975 | N68: =SUM(tblKostenkategorie_06[dec]) -> 975 | O68: =SUM(tblKostenkategorie_06[year]) -> 11,700 | P68: =tblKostenkategorie_06[[#Totals],[year]]/12 -> 975
B71: Ausbildung
B72: Unterrichtsgebühr | E72: 400 | K72: 400 | O72: =SUM(tblKostenkategorie_07[[#This Row],[jan]:[dec]]) -> 800 | P72: =tblKostenkategorie_07[[#This Row],[year]]/12 -> 67
B73: Bücher | E73: 225 | K73: 225 | O73: =SUM(tblKostenkategorie_07[[#This Row],[jan]:[dec]]) -> 450 | P73: =tblKostenkategorie_07[[#This Row],[year]]/12 -> 38
B74: Sonstiges | O74: =SUM(tblKostenkategorie_07[[#This Row],[jan]:[dec]]) -> 0 | P74: =tblKostenkategorie_07[[#This Row],[year]]/12 -> 0
B75: =UPPER("SUMME " & B71) -> SUMME AUSBILDUNG | C75: =SUM(tblKostenkategorie_07[jan]) -> 0 | D75: =SUM(tblKostenkategorie_07[feb]) -> 0 | E75: =SUM(tblKostenkategorie_07[mar]) -> 625 | F75: =SUM(tblKostenkategorie_07[apr]) -> 0 | G75: =SUM(tblKostenkategorie_07[may]) -> 0 | H75: =SUM(tblKostenkategorie_07[jun]) -> 0 | I75: =SUM(tblKostenkategorie_07[jul]) -> 0 | J75: =SUM(tblKostenkategorie_07[aug]) -> 0 | K75: =SUM(tblKostenkategorie_07[sep]) -> 625 | L75: =SUM(tblKostenkategorie_07[oct]) -> 0 | M75: =SUM(tblKostenkategorie_07[nov]) -> 0 | N75: =SUM(tblKostenkategorie_07[dec]) -> 0 | O75: =SUM(tblKostenkategorie_07[year]) -> 1,250 | P75: =tblKostenkategorie_07[[#Totals],[year]]/12 -> 104
B78: Spenden
B79: Geschenke von uns | D79: 100 | H79: 100 | L79: 100 | O79: =SUM(tblKostenkategorie_08[[#This Row],[jan]:[dec]]) -> 300 | P79: =tblKostenkategorie_08[[#This Row],[year]]/12 -> 25
B80: Spenden an gemeinnützige Einrichtungen | E80: 100 | G80: 100 | I80: 100 | K80: 100 | M80: 100 | O80: =SUM(tblKostenkategorie_08[[#This Row],[jan]:[dec]]) -> 500 | P80: =tblKostenkategorie_08[[#This Row],[year]]/12 -> 42
B81: Sonstiges | F81: 100 | J81: 100 | N81: 100 | O81: =SUM(tblKostenkategorie_08[[#This Row],[jan]:[dec]]) -> 300 | P81: =tblKostenkategorie_08[[#This Row],[year]]/12 -> 25
B82: =UPPER("SUMME " & B78) -> SUMME SPENDEN | C82: =SUM(tblKostenkategorie_08[jan]) -> 0 | D82: =SUM(tblKostenkategorie_08[feb]) -> 100 | E82: =SUM(tblKostenkategorie_08[mar]) -> 100 | F82: =SUM(tblKostenkategorie_08[apr]) -> 100 | G82: =SUM(tblKostenkategorie_08[may]) -> 100 | H82: =SUM(tblKostenkategorie_08[jun]) -> 100 | I82: =SUM(tblKostenkategorie_08[jul]) -> 100 | J82: =SUM(tblKostenkategorie_08[aug]) -> 100 | K82: =SUM(tblKostenkategorie_08[sep]) -> 100 | L82: =SUM(tblKostenkategorie_08[oct]) -> 100 | M82: =SUM(tblKostenkategorie_08[nov]) -> 100 | N82: =SUM(tblKostenkategorie_08[dec]) -> 100 | O82: =SUM(tblKostenkategorie_08[year]) -> 1,100 | P82: =tblKostenkategorie_08[[#Totals],[year]]/12 -> 92
B85: Spareinlagen
B86: Notgroschen | C86: 100 | D86: 100 | E86: 100 | F86: 100 | G86: 100 | K86: 100 | L86: 100 | M86: 100 | N86: 100 | O86: =SUM(tblKostenkategorie_09[[#This Row],[jan]:[dec]]) -> 900 | P86: =tblKostenkategorie_09[[#This Row],[year]]/12 -> 75
B87: Altersvorsorge (401.000 €, private Rentenversicherung) | C87: 500 | D87: 500 | E87: 500 | F87: 500 | G87: 500 | H87: 500 | I87: 500 | J87: 500 | K87: 500 | L87: 500 | M87: 500 | N87: 500 | O87: =SUM(tblKostenkategorie_09[[#This Row],[jan]:[dec]]) -> 6,000 | P87: =tblKostenkategorie_09[[#This Row],[year]]/12 -> 500
B88: Überweisung an Sparkonto | C88: 200 | D88: 200 | E88: 200 | F88: 200 | G88: 200 | K88: 200 | L88: 200 | M88: 200 | N88: 200 | O88: =SUM(tblKostenkategorie_09[[#This Row],[jan]:[dec]]) -> 1,800 | P88: =tblKostenkategorie_09[[#This Row],[year]]/12 -> 150
B89: =UPPER("SUMME " & B85) -> SUMME SPAREINLAGEN | C89: =SUM(tblKostenkategorie_09[jan]) -> 800 | D89: =SUM(tblKostenkategorie_09[feb]) -> 800 | E89: =SUM(tblKostenkategorie_09[mar]) -> 800 | F89: =SUM(tblKostenkategorie_09[apr]) -> 800 | G89: =SUM(tblKostenkategorie_09[may]) -> 800 | H89: =SUM(tblKostenkategorie_09[jun]) -> 500 | I89: =SUM(tblKostenkategorie_09[jul]) -> 500 | J89: =SUM(tblKostenkategorie_09[aug]) -> 500 | K89: =SUM(tblKostenkategorie_09[sep]) -> 800 | L89: =SUM(tblKostenkategorie_09[oct]) -> 800 | M89: =SUM(tblKostenkategorie_09[nov]) -> 800 | N89: =SUM(tblKostenkategorie_09[dec]) -> 800 | O89: =SUM(tblKostenkategorie_09[year]) -> 8,700 | P89: =tblKostenkategorie_09[[#Totals],[year]]/12 -> 725
B92: Verbindlichkeiten
B93: Kreditkarte 1 | C93: 145 | D93: 145 | E93: 145 | F93: 145 | G93: 145 | H93: 145 | I93: 145 | J93: 145 | K93: 145 | L93: 145 | M93: 145 | N93: 145 | O93: =SUM(tblKostenkategorie_10[[#This Row],[jan]:[dec]]) -> 1,740 | P93: =tblKostenkategorie_10[[#This Row],[year]]/12 -> 145
B94: Steuern des Bunds | C94: 450 | F94: 450 | I94: 450 | L94: 450 | O94: =SUM(tblKostenkategorie_10[[#This Row],[jan]:[dec]]) -> 1,800 | P94: =tblKostenkategorie_10[[#This Row],[year]]/12 -> 150
B95: Studiendarlehen | C95: 55 | D95: 55 | E95: 55 | F95: 55 | G95: 55 | H95: 55 | I95: 55 | J95: 55 | K95: 55 | L95: 55 | M95: 55 | N95: 55 | O95: =SUM(tblKostenkategorie_10[[#This Row],[jan]:[dec]]) -> 660 | P95: =tblKostenkategorie_10[[#This Row],[year]]/12 -> 55
B96: =UPPER("SUMME " & B92) -> SUMME VERBINDLICHKEITEN | C96: =SUM(tblKostenkategorie_10[jan]) -> 650 | D96: =SUM(tblKostenkategorie_10[feb]) -> 200 | E96: =SUM(tblKostenkategorie_10[mar]) -> 200 | F96: =SUM(tblKostenkategorie_10[apr]) -> 650 | G96: =SUM(tblKostenkategorie_10[may]) -> 200 | H96: =SUM(tblKostenkategorie_10[jun]) -> 200 | I96: =SUM(tblKostenkategorie_10[jul]) -> 650 | J96: =SUM(tblKostenkategorie_10[aug]) -> 200 | K96: =SUM(tblKostenkategorie_10[sep]) -> 200 | L96: =SUM(tblKostenkategorie_10[oct]) -> 650 | M96: =SUM(tblKostenkategorie_10[nov]) -> 200 | N96: =SUM(tblKostenkategorie_10[dec]) -> 200 | O96: =SUM(tblKostenkategorie_10[year]) -> 4,200 | P96: =tblKostenkategorie_10[[#Totals],[year]]/12 -> 350
O100: =SUM(tblKostenkategorie_11[[#This Row],[jan]:[dec]]) -> 0 | P100: =tblKostenkategorie_11[[#This Row],[year]]/12 -> 0
O101: =SUM(tblKostenkategorie_11[[#This Row],[jan]:[dec]]) -> 0 | P101: =tblKostenkategorie_11[[#This Row],[year]]/12 -> 0
O102: =SUM(tblKostenkategorie_11[[#This Row],[jan]:[dec]]) -> 0 | P102: =tblKostenkategorie_11[[#This Row],[year]]/12 -> 0
B103: =UPPER("SUMME " & B99) -> SUMME | C103: =SUM(tblKostenkategorie_11[jan]) -> 0 | D103: =SUM(tblKostenkategorie_11[feb]) -> 0 | E103: =SUM(tblKostenkategorie_11[mar]) -> 0 | F103: =SUM(tblKostenkategorie_11[apr]) -> 0 | G103: =SUM(tblKostenkategorie_11[may]) -> 0 | H103: =SUM(tblKostenkategorie_11[jun]) -> 0 | I103: =SUM(tblKostenkategorie_11[jul]) -> 0 | J103: =SUM(tblKostenkategorie_11[aug]) -> 0 | K103: =SUM(tblKostenkategorie_11[sep]) -> 0 | L103: =SUM(tblKostenkategorie_11[oct]) -> 0 | M103: =SUM(tblKostenkategorie_11[nov]) -> 0 | N103: =SUM(tblKostenkategorie_11[dec]) -> 0 | O103: =SUM(tblKostenkategorie_11[year]) -> 0 | P103: =tblKostenkategorie_11[[#Totals],[year]]/12 -> 0
O107: =SUM(tblKostenkategorie_12[[#This Row],[jan]:[dec]]) -> 0 | P107: =tblKostenkategorie_12[[#This Row],[year]]/12 -> 0
O108: =SUM(tblKostenkategorie_12[[#This Row],[jan]:[dec]]) -> 0 | P108: =tblKostenkategorie_12[[#This Row],[year]]/12 -> 0
O109: =SUM(tblKostenkategorie_12[[#This Row],[jan]:[dec]]) -> 0 | P109: =tblKostenkategorie_12[[#This Row],[year]]/12 -> 0
B110: =UPPER("SUMME " & B106) -> SUMME | C110: =SUM(tblKostenkategorie_12[jan]) -> 0 | D110: =SUM(tblKostenkategorie_12[feb]) -> 0 | E110: =SUM(tblKostenkategorie_12[mar]) -> 0 | F110: =SUM(tblKostenkategorie_12[apr]) -> 0 | G110: =SUM(tblKostenkategorie_12[may]) -> 0 | H110: =SUM(tblKostenkategorie_12[jun]) -> 0 | I110: =SUM(tblKostenkategorie_12[jul]) -> 0 | J110: =SUM(tblKostenkategorie_12[aug]) -> 0 | K110: =SUM(tblKostenkategorie_12[sep]) -> 0 | L110: =SUM(tblKostenkategorie_12[oct]) -> 0 | M110: =SUM(tblKostenkategorie_12[nov]) -> 0 | N110: =SUM(tblKostenkategorie_12[dec]) -> 0 | O110: =SUM(tblKostenkategorie_12[year]) -> 0 | P110: =tblKostenkategorie_12[[#Totals],[year]]/12 -> 0
O114: =SUM(tblKostenkategorie_13[[#This Row],[jan]:[dec]]) -> 0 | P114: =tblKostenkategorie_13[[#This Row],[year]]/12 -> 0
O115: =SUM(tblKostenkategorie_13[[#This Row],[jan]:[dec]]) -> 0 | P115: =tblKostenkategorie_13[[#This Row],[year]]/12 -> 0
O116: =SUM(tblKostenkategorie_13[[#This Row],[jan]:[dec]]) -> 0 | P116: =tblKostenkategorie_13[[#This Row],[year]]/12 -> 0
B117: =UPPER("SUMME " & B113) -> SUMME | C117: =SUM(tblKostenkategorie_13[jan]) -> 0 | D117: =SUM(tblKostenkategorie_13[feb]) -> 0 | E117: =SUM(tblKostenkategorie_13[mar]) -> 0 | F117: =SUM(tblKostenkategorie_13[apr]) -> 0 | G117: =SUM(tblKostenkategorie_13[may]) -> 0 | H117: =SUM(tblKostenkategorie_13[jun]) -> 0 | I117: =SUM(tblKostenkategorie_13[jul]) -> 0 | J117: =SUM(tblKostenkategorie_13[aug]) -> 0 | K117: =SUM(tblKostenkategorie_13[sep]) -> 0 | L117: =SUM(tblKostenkategorie_13[oct]) -> 0 | M117: =SUM(tblKostenkategorie_13[nov]) -> 0 | N117: =SUM(tblKostenkategorie_13[dec]) -> 0 | O117: =SUM(tblKostenkategorie_13[year]) -> 0 | P117: =tblKostenkategorie_13[[#Totals],[year]]/12 -> 0
O121: =SUM(tblKostenkategorie_14[[#This Row],[jan]:[dec]]) -> 0 | P121: =tblKostenkategorie_14[[#This Row],[year]]/12 -> 0
O122: =SUM(tblKostenkategorie_14[[#This Row],[jan]:[dec]]) -> 0 | P122: =tblKostenkategorie_14[[#This Row],[year]]/12 -> 0
O123: =SUM(tblKostenkategorie_14[[#This Row],[jan]:[dec]]) -> 0 | P123: =tblKostenkategorie_14[[#This Row],[year]]/12 -> 0
B124: =UPPER("SUMME " & B120) -> SUMME | C124: =SUM(tblKostenkategorie_14[jan]) -> 0 | D124: =SUM(tblKostenkategorie_14[feb]) -> 0 | E124: =SUM(tblKostenkategorie_14[mar]) -> 0 | F124: =SUM(tblKostenkategorie_14[apr]) -> 0 | G124: =SUM(tblKostenkategorie_14[may]) -> 0 | H124: =SUM(tblKostenkategorie_14[jun]) -> 0 | I124: =SUM(tblKostenkategorie_14[jul]) -> 0 | J124: =SUM(tblKostenkategorie_14[aug]) -> 0 | K124: =SUM(tblKostenkategorie_14[sep]) -> 0 | L124: =SUM(tblKostenkategorie_14[oct]) -> 0 | M124: =SUM(tblKostenkategorie_14[nov]) -> 0 | N124: =SUM(tblKostenkategorie_14[dec]) -> 0 | O124: =SUM(tblKostenkategorie_14[year]) -> 0 | P124: =tblKostenkategorie_14[[#Totals],[year]]/12 -> 0
O128: =SUM(tblKostenkategorie_15[[#This Row],[jan]:[dec]]) -> 0 | P128: =tblKostenkategorie_15[[#This Row],[year]]/12 -> 0
O129: =SUM(tblKostenkategorie_15[[#This Row],[jan]:[dec]]) -> 0 | P129: =tblKostenkategorie_15[[#This Row],[year]]/12 -> 0
O130: =SUM(tblKostenkategorie_15[[#This Row],[jan]:[dec]]) -> 0 | P130: =tblKostenkategorie_15[[#This Row],[year]]/12 -> 0
B131: =UPPER("SUMME " & B127) -> SUMME | C131: =SUM(tblKostenkategorie_15[jan]) -> 0 | D131: =SUM(tblKostenkategorie_15[feb]) -> 0 | E131: =SUM(tblKostenkategorie_15[mar]) -> 0 | F131: =SUM(tblKostenkategorie_15[apr]) -> 0 | G131: =SUM(tblKostenkategorie_15[may]) -> 0 | H131: =SUM(tblKostenkategorie_15[jun]) -> 0 | I131: =SUM(tblKostenkategorie_15[jul]) -> 0 | J131: =SUM(tblKostenkategorie_15[aug]) -> 0 | K131: =SUM(tblKostenkategorie_15[sep]) -> 0 | L131: =SUM(tblKostenkategorie_15[oct]) -> 0 | M131: =SUM(tblKostenkategorie_15[nov]) -> 0 | N131: =SUM(tblKostenkategorie_15[dec]) -> 0 | O131: =SUM(tblKostenkategorie_15[year]) -> 0 | P131: =tblKostenkategorie_15[[#Totals],[year]]/12 -> 0

Sheet Setup
B1: FAMILIE NIELSEN 2012
B2: Einkünfte | D2: Ausgaben
B3: Gehälter und Trinkgelder
B4: Zinsertrag | D4: Haushalt | F4: Haushalt | H4: Tägliches Leben | J4: Kinder
B5: Dividenden | D5: Tägliches Leben | F5: Hypothek/Miete | H5: Lebensmittel | J5: Medizin
B6: Erhaltene Geschenke | D6: Kinder | F6: Strom | H6: Privater Bedarf | J6: Kleidung
B7: Rückerstattungen/Rückzahlungen | D7: Transport | F7: Gas/Öl | H7: Kleidung | J7: Schulgebühren
B8: Überweisung vom Sparkonto | D8: Gesundheit | F8: Wasser/Abwasser/Müll | H8: Reinigungsdienste | J8: Mittagessen in der Schule
B9: Sonstiges | D9: Versicherungen | F9: Telefon | H9: Restaurantbesuche | J9: Unterrichtsmaterialien
D10: Ausbildung | F10: Kabel-/Satellitenfernsehen | H10: Chemische Reinigung | J10: Babysitter
D11: Spenden | F11: Internet | H11: Friseur | J11: Spielzeug/Spiele
D12: Spareinlagen | F12: Möbel/Haushaltsgeräte | H12: Sonstiges | J12: Sonstiges
D13: Verbindlichkeiten | F13: Rasen/Garten
D14: Unterhaltung | F14: Versorgungsgüter
D15: Haustiere | F15: Wartung
D16: Abonnements | F16: Renovierungen
D17: Urlaub | F17: Sonstiges
D18: Verschiedenes
F20: Transport | H20: Gesundheit | J20: Versicherungen
F21: Kfz-Kosten | H21: Arzt/Zahnarzt | J21: Kfz-Versicherung
F22: Kraftstoff | H22: Medikamente | J22: Krankenversicherung
F23: Bus/Taxi/Bahn | H23: Gebühren für Fitnesscenter | J23: Wohnung/Miete
F24: Reparaturen | H24: Notgroschen | J24: Lebensversicherung
F25: Kfz-Anmeldung | H25: Sonstiges | J25: Sonstiges
F26: Sonstiges
F29: Ausbildung | H29: Spenden | J29: Spareinlagen
F30: Unterrichtsgebühr | H30: Geschenke von uns | J30: Notgroschen
F31: Bücher | H31: Spenden an gemeinnützige Einrichtungen | J31: Überweisung an Sparkonto
F32: Musikunterricht | H32: Kirchliche Spenden | J32: Altersvorsorge (401.000 €, private Rentenversicherung)
F33: Sonstiges | H33: Sonstiges | J33: Investitionen
J34: Hochschule
J35: Sonstiges
F38: Verbindlichkeiten | H38: Unterhaltung | J38: Haustiere
F39: Studiendarlehen | H39: Videos/DVDs | J39: Futter
F40: Sonstiges Darlehen | H40: Musik | J40: Medizin
F41: Kreditkarte 1 | H41: Spiele | J41: Spielzeug/Zubehör
F42: Kreditkarte 2 | H42: Leihgebühren | J42: Sonstiges
F43: Kreditkarte 3 | H43: Kino/Theater
F44: Unterhalt/Kindergeld | H44: Konzerte/Opern
F45: Steuern des Bunds | H45: Bücher
F46: Grundsteuer | H46: Hobbys
F47: Landes-/Gemeindesteuern | H47: Filme/Fotos
F48: Hausgeldabrechnungen | H48: Sportverein
F49: Rechtsanwaltskosten | H49: Erholung im Freien
F50: Sonstiges | H50: Spielzeug/technische Spielereien
H51: Sonstiges
F53: Abonnements | H53: Urlaub | J53: Verschiedenes
F54: Tageszeitung | H54: Reise | J54: Bankgebühren
F55: Zeitschriften | H55: Unterkunft | J55: Porto
F56: Gebühren | H56: Essen | J56: Sonstiges
F57: Clubmitgliedschaften | H57: Mietwagen
F58: Sonstiges | H58: Unterhaltung
H59: Sonstiges

Sheet Diagrammdaten (hidden)
B1: *** Dieses Arbeitsblatt sollte ausgeblendet bleiben ***
B4: Zeitraum | C4: 1
C6: Jan | D6: Feb | E6: Mär | F6: Apr | G6: Mai | H6: Jun | I6: Jul | J6: Aug | K6: Sep | L6: Okt | M6: Nov | N6: Dez | O6: Jahr | P6: Durchschn.
B7: =LOWER(Budget!B127) ->  | C7: =SUM(tblKostenkategorie_15[jan]) -> 0 | D7: =SUM(tblKostenkategorie_15[feb]) -> 0 | E7: =SUM(tblKostenkategorie_15[mar]) -> 0 | F7: =SUM(tblKostenkategorie_15[apr]) -> 0 | G7: =SUM(tblKostenkategorie_15[may]) -> 0 | H7: =SUM(tblKostenkategorie_15[jun]) -> 0 | I7: =SUM(tblKostenkategorie_15[jul]) -> 0 | J7: =SUM(tblKostenkategorie_15[aug]) -> 0 | K7: =SUM(tblKostenkategorie_15[sep]) -> 0 | L7: =SUM(tblKostenkategorie_15[oct]) -> 0 | M7: =SUM(tblKostenkategorie_15[nov]) -> 0 | N7: =SUM(tblKostenkategorie_15[dec]) -> 0 | O7: =SUM(tblKostenkategorie_15[year]) -> 0 | P7: =SUM(tblKostenkategorie_15[avg]) -> 0
B8: =LOWER(Budget!B120) ->  | C8: =SUM(tblKostenkategorie_14[jan]) -> 0 | D8: =SUM(tblKostenkategorie_14[feb]) -> 0 | E8: =SUM(tblKostenkategorie_14[mar]) -> 0 | F8: =SUM(tblKostenkategorie_14[apr]) -> 0 | G8: =SUM(tblKostenkategorie_14[may]) -> 0 | H8: =SUM(tblKostenkategorie_14[jun]) -> 0 | I8: =SUM(tblKostenkategorie_14[jul]) -> 0 | J8: =SUM(tblKostenkategorie_14[aug]) -> 0 | K8: =SUM(tblKostenkategorie_14[sep]) -> 0 | L8: =SUM(tblKostenkategorie_14[oct]) -> 0 | M8: =SUM(tblKostenkategorie_14[nov]) -> 0 | N8: =SUM(tblKostenkategorie_14[dec]) -> 0 | O8: =SUM(tblKostenkategorie_14[year]) -> 0 | P8: =SUM(tblKostenkategorie_14[avg]) -> 0
B9: =LOWER(Budget!B113) ->  | C9: =SUM(tblKostenkategorie_13[jan]) -> 0 | D9: =SUM(tblKostenkategorie_13[feb]) -> 0 | E9: =SUM(tblKostenkategorie_13[mar]) -> 0 | F9: =SUM(tblKostenkategorie_13[apr]) -> 0 | G9: =SUM(tblKostenkategorie_13[may]) -> 0 | H9: =SUM(tblKostenkategorie_13[jun]) -> 0 | I9: =SUM(tblKostenkategorie_13[jul]) -> 0 | J9: =SUM(tblKostenkategorie_13[aug]) -> 0 | K9: =SUM(tblKostenkategorie_13[sep]) -> 0 | L9: =SUM(tblKostenkategorie_13[oct]) -> 0 | M9: =SUM(tblKostenkategorie_13[nov]) -> 0 | N9: =SUM(tblKostenkategorie_13[dec]) -> 0 | O9: =SUM(tblKostenkategorie_13[year]) -> 0 | P9: =SUM(tblKostenkategorie_13[avg]) -> 0
B10: =LOWER(Budget!B106) ->  | C10: =SUM(tblKostenkategorie_12[jan]) -> 0 | D10: =SUM(tblKostenkategorie_12[feb]) -> 0 | E10: =SUM(tblKostenkategorie_12[mar]) -> 0 | F10: =SUM(tblKostenkategorie_12[apr]) -> 0 | G10: =SUM(tblKostenkategorie_12[may]) -> 0 | H10: =SUM(tblKostenkategorie_12[jun]) -> 0 | I10: =SUM(tblKostenkategorie_12[jul]) -> 0 | J10: =SUM(tblKostenkategorie_12[aug]) -> 0 | K10: =SUM(tblKostenkategorie_12[sep]) -> 0 | L10: =SUM(tblKostenkategorie_12[oct]) -> 0 | M10: =SUM(tblKostenkategorie_12[nov]) -> 0 | N10: =SUM(tblKostenkategorie_12[dec]) -> 0 | O10: =SUM(tblKostenkategorie_12[year]) -> 0 | P10: =SUM(tblKostenkategorie_12[avg]) -> 0
C11: =SUM(tblKostenkategorie_11[jan]) -> 0 | D11: =SUM(tblKostenkategorie_11[feb]) -> 0 | E11: =SUM(tblKostenkategorie_11[mar]) -> 0 | F11: =SUM(tblKostenkategorie_11[apr]) -> 0 | G11: =SUM(tblKostenkategorie_11[may]) -> 0 | H11: =SUM(tblKostenkategorie_11[jun]) -> 0 | I11: =SUM(tblKostenkategorie_11[jul]) -> 0 | J11: =SUM(tblKostenkategorie_11[aug]) -> 0 | K11: =SUM(tblKostenkategorie_11[sep]) -> 0 | L11: =SUM(tblKostenkategorie_11[oct]) -> 0 | M11: =SUM(tblKostenkategorie_11[nov]) -> 0 | N11: =SUM(tblKostenkategorie_11[dec]) -> 0 | O11: =SUM(tblKostenkategorie_11[year]) -> 0 | P11: =SUM(tblKostenkategorie_11[avg]) -> 0
B12: =Budget!B92 -> Verbindlichkeiten | C12: =SUM(tblKostenkategorie_10[jan]) -> 650 | D12: =SUM(tblKostenkategorie_10[feb]) -> 200 | E12: =SUM(tblKostenkategorie_10[mar]) -> 200 | F12: =SUM(tblKostenkategorie_10[apr]) -> 650 | G12: =SUM(tblKostenkategorie_10[may]) -> 200 | H12: =SUM(tblKostenkategorie_10[jun]) -> 200 | I12: =SUM(tblKostenkategorie_10[jul]) -> 650 | J12: =SUM(tblKostenkategorie_10[aug]) -> 200 | K12: =SUM(tblKostenkategorie_10[sep]) -> 200 | L12: =SUM(tblKostenkategorie_10[oct]) -> 650 | M12: =SUM(tblKostenkategorie_10[nov]) -> 200 | N12: =SUM(tblKostenkategorie_10[dec]) -> 200 | O12: =SUM(tblKostenkategorie_10[year]) -> 4,200 | P12: =SUM(tblKostenkategorie_10[avg]) -> 350
B13: =Budget!B85 -> Spareinlagen | C13: =SUM(tblKostenkategorie_09[jan]) -> 800 | D13: =SUM(tblKostenkategorie_09[feb]) -> 800 | E13: =SUM(tblKostenkategorie_09[mar]) -> 800 | F13: =SUM(tblKostenkategorie_09[apr]) -> 800 | G13: =SUM(tblKostenkategorie_09[may]) -> 800 | H13: =SUM(tblKostenkategorie_09[jun]) -> 500 | I13: =SUM(tblKostenkategorie_09[jul]) -> 500 | J13: =SUM(tblKostenkategorie_09[aug]) -> 500 | K13: =SUM(tblKostenkategorie_09[sep]) -> 800 | L13: =SUM(tblKostenkategorie_09[oct]) -> 800 | M13: =SUM(tblKostenkategorie_09[nov]) -> 800 | N13: =SUM(tblKostenkategorie_09[dec]) -> 800 | O13: =SUM(tblKostenkategorie_09[year]) -> 8,700 | P13: =SUM(tblKostenkategorie_09[avg]) -> 725
B14: =Budget!B78 -> Spenden | C14: =SUM(tblKostenkategorie_08[jan]) -> 0 | D14: =SUM(tblKostenkategorie_08[feb]) -> 100 | E14: =SUM(tblKostenkategorie_08[mar]) -> 100 | F14: =SUM(tblKostenkategorie_08[apr]) -> 100 | G14: =SUM(tblKostenkategorie_08[may]) -> 100 | H14: =SUM(tblKostenkategorie_08[jun]) -> 100 | I14: =SUM(tblKostenkategorie_08[jul]) -> 100 | J14: =SUM(tblKostenkategorie_08[aug]) -> 100 | K14: =SUM(tblKostenkategorie_08[sep]) -> 100 | L14: =SUM(tblKostenkategorie_08[oct]) -> 100 | M14: =SUM(tblKostenkategorie_08[nov]) -> 100 | N14: =SUM(tblKostenkategorie_08[dec]) -> 100 | O14: =SUM(tblKostenkategorie_08[year]) -> 1,100 | P14: =SUM(tblKostenkategorie_08[avg]) -> 92
B15: =Budget!B71 -> Ausbildung | C15: =SUM(tblKostenkategorie_07[jan]) -> 0 | D15: =SUM(tblKostenkategorie_07[feb]) -> 0 | E15: =SUM(tblKostenkategorie_07[mar]) -> 625 | F15: =SUM(tblKostenkategorie_07[apr]) -> 0 | G15: =SUM(tblKostenkategorie_07[may]) -> 0 | H15: =SUM(tblKostenkategorie_07[jun]) -> 0 | I15: =SUM(tblKostenkategorie_07[jul]) -> 0 | J15: =SUM(tblKostenkategorie_07[aug]) -> 0 | K15: =SUM(tblKostenkategorie_07[sep]) -> 625 | L15: =SUM(tblKostenkategorie_07[oct]) -> 0 | M15: =SUM(tblKostenkategorie_07[nov]) -> 0 | N15: =SUM(tblKostenkategorie_07[dec]) -> 0 | O15: =SUM(tblKostenkategorie_07[year]) -> 1,250 | P15: =SUM(tblKostenkategorie_07[avg]) -> 104
B16: =Budget!B64 -> Versicherungen | C16: =SUM(tblKostenkategorie_06[jan]) -> 975 | D16: =SUM(tblKostenkategorie_06[feb]) -> 975 | E16: =SUM(tblKostenkategorie_06[mar]) -> 975 | F16: =SUM(tblKostenkategorie_06[apr]) -> 975 | G16: =SUM(tblKostenkategorie_06[may]) -> 975 | H16: =SUM(tblKostenkategorie_06[jun]) -> 975 | I16: =SUM(tblKostenkategorie_06[jul]) -> 975 | J16: =SUM(tblKostenkategorie_06[aug]) -> 975 | K16: =SUM(tblKostenkategorie_06[sep]) -> 975 | L16: =SUM(tblKostenkategorie_06[oct]) -> 975 | M16: =SUM(tblKostenkategorie_06[nov]) -> 975 | N16: =SUM(tblKostenkategorie_06[dec]) -> 975 | O16: =SUM(tblKostenkategorie_06[year]) -> 11,700 | P16: =SUM(tblKostenkategorie_06[avg]) -> 975
B17: =Budget!B57 -> Gesundheit | C17: =SUM(tblKostenkategorie_05[jan]) -> 25 | D17: =SUM(tblKostenkategorie_05[feb]) -> 60 | E17: =SUM(tblKostenkategorie_05[mar]) -> 175 | F17: =SUM(tblKostenkategorie_05[apr]) -> 25 | G17: =SUM(tblKostenkategorie_05[may]) -> 60 | H17: =SUM(tblKostenkategorie_05[jun]) -> 60 | I17: =SUM(tblKostenkategorie_05[jul]) -> 60 | J17: =SUM(tblKostenkategorie_05[aug]) -> 25 | K17: =SUM(tblKostenkategorie_05[sep]) -> 175 | L17: =SUM(tblKostenkategorie_05[oct]) -> 60 | M17: =SUM(tblKostenkategorie_05[nov]) -> 25 | N17: =SUM(tblKostenkategorie_05[dec]) -> 25 | O17: =SUM(tblKostenkategorie_05[year]) -> 775 | P17: =SUM(tblKostenkategorie_05[avg]) -> 65
B18: =Budget!B48 -> Transport | C18: =SUM(tblKostenkategorie_04[jan]) -> 1,110 | D18: =SUM(tblKostenkategorie_04[feb]) -> 1,025 | E18: =SUM(tblKostenkategorie_04[mar]) -> 925 | F18: =SUM(tblKostenkategorie_04[apr]) -> 1,025 | G18: =SUM(tblKostenkategorie_04[may]) -> 1,325 | H18: =SUM(tblKostenkategorie_04[jun]) -> 1,200 | I18: =SUM(tblKostenkategorie_04[jul]) -> 1,100 | J18: =SUM(tblKostenkategorie_04[aug]) -> 1,200 | K18: =SUM(tblKostenkategorie_04[sep]) -> 1,150 | L18: =SUM(tblKostenkategorie_04[oct]) -> 1,025 | M18: =SUM(tblKostenkategorie_04[nov]) -> 925 | N18: =SUM(tblKostenkategorie_04[dec]) -> 925 | O18: =SUM(tblKostenkategorie_04[year]) -> 12,935 | P18: =SUM(tblKostenkategorie_04[avg]) -> 1,078
B19: =Budget!B39 -> Kinder | C19: =SUM(tblKostenkategorie_03[jan]) -> 2,373 | D19: =SUM(tblKostenkategorie_03[feb]) -> 500 | E19: =SUM(tblKostenkategorie_03[mar]) -> 350 | F19: =SUM(tblKostenkategorie_03[apr]) -> 250 | G19: =SUM(tblKostenkategorie_03[may]) -> 350 | H19: =SUM(tblKostenkategorie_03[jun]) -> 450 | I19: =SUM(tblKostenkategorie_03[jul]) -> 200 | J19: =SUM(tblKostenkategorie_03[aug]) -> 545 | K19: =SUM(tblKostenkategorie_03[sep]) -> 350 | L19: =SUM(tblKostenkategorie_03[oct]) -> 350 | M19: =SUM(tblKostenkategorie_03[nov]) -> 250 | N19: =SUM(tblKostenkategorie_03[dec]) -> 350 | O19: =SUM(tblKostenkategorie_03[year]) -> 6,318 | P19: =SUM(tblKostenkategorie_03[avg]) -> 527
B20: =Budget!B30 -> Tägliches Leben | C20: =SUM(tblKostenkategorie_02[jan]) -> 795 | D20: =SUM(tblKostenkategorie_02[feb]) -> 375 | E20: =SUM(tblKostenkategorie_02[mar]) -> 550 | F20: =SUM(tblKostenkategorie_02[apr]) -> 825 | G20: =SUM(tblKostenkategorie_02[may]) -> 500 | H20: =SUM(tblKostenkategorie_02[jun]) -> 450 | I20: =SUM(tblKostenkategorie_02[jul]) -> 875 | J20: =SUM(tblKostenkategorie_02[aug]) -> 475 | K20: =SUM(tblKostenkategorie_02[sep]) -> 400 | L20: =SUM(tblKostenkategorie_02[oct]) -> 825 | M20: =SUM(tblKostenkategorie_02[nov]) -> 575 | N20: =SUM(tblKostenkategorie_02[dec]) -> 375 | O20: =SUM(tblKostenkategorie_02[year]) -> 7,020 | P20: =SUM(tblKostenkategorie_02[avg]) -> 585
B21: =Budget!B21 -> Haushalt | C21: =SUM(tblKostenkategorie_01[jan]) -> 1,208 | D21: =SUM(tblKostenkategorie_01[feb]) -> 1,208 | E21: =SUM(tblKostenkategorie_01[mar]) -> 1,233 | F21: =SUM(tblKostenkategorie_01[apr]) -> 1,208 | G21: =SUM(tblKostenkategorie_01[may]) -> 1,158 | H21: =SUM(tblKostenkategorie_01[jun]) -> 1,183 | I21: =SUM(tblKostenkategorie_01[jul]) -> 1,283 | J21: =SUM(tblKostenkategorie_01[aug]) -> 1,333 | K21: =SUM(tblKostenkategorie_01[sep]) -> 1,208 | L21: =SUM(tblKostenkategorie_01[oct]) -> 1,158 | M21: =SUM(tblKostenkategorie_01[nov]) -> 1,208 | N21: =SUM(tblKostenkategorie_01[dec]) -> 1,208 | O21: =SUM(tblKostenkategorie_01[year]) -> 14,596 | P21: =SUM(tblKostenkategorie_01[avg]) -> 1,216
E22: =LOWER(Budget!B99) -> 
B26: Kumulativer Geldfluss | C26: =SUM(Budget!$C$8:C$8) -> -3,714 | D26: =SUM(Budget!$C$8:D$8) -> 76 | E26: =SUM(Budget!$C$8:E$8) -> -1,857 | F26: =SUM(Budget!$C$8:F$8) -> -3,670 | G26: =SUM(Budget!$C$8:G$8) -> -138 | H26: =SUM(Budget!$C$8:H$8) -> -3,731 | I26: =SUM(Budget!$C$8:I$8) -> -7,974 | J26: =SUM(Budget!$C$8:J$8) -> -6,827 | K26: =SUM(Budget!$C$8:K$8) -> -8,810 | L26: =SUM(Budget!$C$8:L$8) -> -10,753 | M26: =SUM(Budget!$C$8:M$8) -> -6,811 | N26: =SUM(Budget!$C$8:N$8) -> -7,769 | O26: =SUM(Budget!$C$8:O$8) -> -15,538
B28: Jährlicher Geldfluss (positiv) | C28: =IF(Budget!C$8<0,NA(),IF(Zeitraum+2<>COLUMN(Budget!C$8),NA(),Budget!C$8)) ->  | D28: =IF(Budget!D$8<0,NA(),IF(Zeitraum+2<>COLUMN(Budget!D$8),NA(),Budget!D$8)) ->  | E28: =IF(Budget!E$8<0,NA(),IF(Zeitraum+2<>COLUMN(Budget!E$8),NA(),Budget!E$8)) ->  | F28: =IF(Budget!F$8<0,NA(),IF(Zeitraum+2<>COLUMN(Budget!F$8),NA(),Budget!F$8)) ->  | G28: =IF(Budget!G$8<0,NA(),IF(Zeitraum+2<>COLUMN(Budget!G$8),NA(),Budget!G$8)) ->  | H28: =IF(Budget!H$8<0,NA(),IF(Zeitraum+2<>COLUMN(Budget!H$8),NA(),Budget!H$8)) ->  | I28: =IF(Budget!I$8<0,NA(),IF(Zeitraum+2<>COLUMN(Budget!I$8),NA(),Budget!I$8)) ->  | J28: =IF(Budget!J$8<0,NA(),IF(Zeitraum+2<>COLUMN(Budget!J$8),NA(),Budget!J$8)) ->  | K28: =IF(Budget!K$8<0,NA(),IF(Zeitraum+2<>COLUMN(Budget!K$8),NA(),Budget!K$8)) ->  | L28: =IF(Budget!L$8<0,NA(),IF(Zeitraum+2<>COLUMN(Budget!L$8),NA(),Budget!L$8)) ->  | M28: =IF(Budget!M$8<0,NA(),IF(Zeitraum+2<>COLUMN(Budget!M$8),NA(),Budget!M$8)) ->  | N28: =IF(Budget!N$8<0,NA(),IF(Zeitraum+2<>COLUMN(Budget!N$8),NA(),Budget!N$8)) ->  | O28: =IF(Budget!O$8<0,NA(),IF(Zeitraum+2<>COLUMN(Budget!O$8),NA(),Budget!O$8)) -> 
B29: Jährlicher Geldfluss (negativ) | C29: =IF(Budget!C$8>=0,NA(),IF(Zeitraum+2<>COLUMN(Budget!C$8),NA(),Budget!C$8)) -> -3,714 | D29: =IF(Budget!D$8>=0,NA(),IF(Zeitraum+2<>COLUMN(Budget!D$8),NA(),Budget!D$8)) ->  | E29: =IF(Budget!E$8>=0,NA(),IF(Zeitraum+2<>COLUMN(Budget!E$8),NA(),Budget!E$8)) ->  | F29: =IF(Budget!F$8>=0,NA(),IF(Zeitraum+2<>COLUMN(Budget!F$8),NA(),Budget!F$8)) ->  | G29: =IF(Budget!G$8>=0,NA(),IF(Zeitraum+2<>COLUMN(Budget!G$8),NA(),Budget!G$8)) ->  | H29: =IF(Budget!H$8>=0,NA(),IF(Zeitraum+2<>COLUMN(Budget!H$8),NA(),Budget!H$8)) ->  | I29: =IF(Budget!I$8>=0,NA(),IF(Zeitraum+2<>COLUMN(Budget!I$8),NA(),Budget!I$8)) ->  | J29: =IF(Budget!J$8>=0,NA(),IF(Zeitraum+2<>COLUMN(Budget!J$8),NA(),Budget!J$8)) ->  | K29: =IF(Budget!K$8>=0,NA(),IF(Zeitraum+2<>COLUMN(Budget!K$8),NA(),Budget!K$8)) ->  | L29: =IF(Budget!L$8>=0,NA(),IF(Zeitraum+2<>COLUMN(Budget!L$8),NA(),Budget!L$8)) ->  | M29: =IF(Budget!M$8>=0,NA(),IF(Zeitraum+2<>COLUMN(Budget!M$8),NA(),Budget!M$8)) ->  | N29: =IF(Budget!N$8>=0,NA(),IF(Zeitraum+2<>COLUMN(Budget!N$8),NA(),Budget!N$8)) ->  | O29: =IF(Budget!O$8>=0,NA(),IF(Zeitraum+2<>COLUMN(Budget!O$8),NA(),Budget!O$8)) -> 
B37: =angezeigter_langer_Zeitraum -> Januar
B38: =angezeigter_langer_Zeitraum & " Einkünfte" -> Januar Einkünfte | C38: =INDEX(Budget!$C$6:$P$6,,Zeitraum) -> 4,222 €
B39: =angezeigter_langer_Zeitraum & " Ausgaben: " & TEXT(INDEX(Budget!$C$7:$P$7,,Zeitraum),"#.##0 €") -> Januar Ausgaben: 7.936 € | C39: =INDEX(Budget!$C$7:$P$7,,Zeitraum) -> 7,936 €
B40: =angezeigter_langer_Zeitraum & " Cashflow" -> Januar Cashflow | C40: =ABS(INDEX(Budget!$C$8:$P$8,,Zeitraum)) -> 3,714 € | D40: =REPT("-",INDEX(Budget!$C$8:$P$8,,Zeitraum)<0) -> -
